lending/lending_fUSD_20240710
["ID","MTS","AMOUNT","RATE_DAILY","PERIOD"]
[331641877,1720599086843,-500.0,0.00013917,2]
[331641878,1720599086852,-500.0,0.00013917,2]
[331641879,1720599086861,-536.21,0.00013917,2]
[331641880,1720599086871,-1424.11,0.00013917,2]
[331641881,1720599086881,-500.0,0.00013917,2]
[331641882,1720599086890,-500.0,0.00013917,2]
[331641883,1720599086899,-675.33,0.00013917,2]
[331641884,1720599086908,-1542.9,0.00013917,2]
[331641885,1720599086917,-2311.64,0.00013917,2]
[331641886,1720599086926,-735.88,0.00013917,2]
[331641887,1720599086936,-500.0,0.00013917,2]
[331641888,1720599086945,-500.0,0.00013917,2]
[331641889,1720599086955,-520.9,0.00013917,2]
[331641890,1720599086965,-550.92,0.00013917,2]
[331641891,1720599086974,-735.1,0.00013917,2]
[331641892,1720599086984,-500.0,0.00013917,2]
[331641893,1720599086993,-500.0,0.00013917,2]
[331641894,1720599087002,-983.61,0.00013917,2]
[331641895,1720599087012,-1779.81,0.00013917,2]
[331641896,1720599087021,-1344.22,0.00013917,2]
[331641897,1720599087031,-500.0,0.00013917,2]
[331641898,1720599087040,-500.0,0.00013917,2]
[331641899,1720599087050,-500.0,0.00013917,2]
[331641900,1720599087060,-1360.07,0.00013917,2]
[331641901,1720599087069,-500.0,0.00013917,2]
[331641902,1720599087079,-1604.96,0.00013917,2]
[331641903,1720599087089,-500.0,0.00013917,2]
[331641904,1720599087099,-756.49,0.00013917,2]
[331641905,1720599087108,-500.0,0.00013917,2]
[331641906,1720599087118,-500.0,0.00013917,2]
[331641907,1720599087128,-547.2,0.00013917,2]
[331641908,1720599087138,-500.0,0.00013917,2]
[331641909,1720599087148,-531.78,0.00013917,2]
[331641910,1720599087158,-822.71,0.00013917,2]
[331641911,1720599087168,-1683.85,0.00013917,2]
[331641912,1720599087178,-524.61,0.00013917,2]
[331641913,1720599087187,-500.0,0.00013917,2]
[331641914,1720599087197,-500.0,0.00013917,2]
[331641915,1720599087207,-500.0,0.00013917,2]
[331641916,1720599087217,-500.0,0.00013917,2]
[331641917,1720599087228,-1558.27,0.00013917,2]
[331641918,1720599087238,-500.0,0.00013917,2]
[331641919,1720599087248,-714.25,0.00013917,2]
[331641920,1720599087259,-1066.79,0.00013917,2]
[331641921,1720599087269,-500.0,0.00013917,2]
[331641922,1720599087280,-212.49383363,0.00013917,2]
[331641923,1720599087290,-1204.92,0.00013917,2]
[331641924,1720599087302,-500.0,0.00013917,2]
[331641925,1720599087313,-500.0,0.00013917,2]
[331641926,1720599087324,-530.19,0.00013917,2]
[331641927,1720599087336,-500.0,0.00013917,2]
[331641928,1720599087354,-2232.76,0.00013917,2]
[331641929,1720599087364,-500.0,0.00013917,2]
[331641930,1720599087378,-620.75,0.00013917,2]
[331641931,1720599087394,-500.0,0.00013917,2]
[331641932,1720599087405,-500.0,0.00013917,2]
[331641933,1720599087417,-855.05,0.00013917,2]
[331641934,1720599087428,-1275.18,0.00013917,2]
[331641935,1720599087439,-361.03692873,0.00013917,2]
[331641936,1720599087451,-500.0,0.00013917,2]
[331641937,1720599087463,-1683.31,0.00013917,2]
[331641938,1720599087475,-644.41,0.00013917,2]
[331641939,1720599087486,-895.21,0.00013917,2]
[331641940,1720599087498,-787.1,0.00013917,2]
[331641941,1720599087510,-500.0,0.00013917,2]
[331641942,1720599087522,-500.0,0.00013917,2]
[331641943,1720599087535,-627.6,0.00013917,2]
[331641944,1720599087546,-546.71,0.00013917,2]
[331641945,1720599087558,-989.85,0.00013917,2]
[331641946,1720599087575,-2051.53,0.00013917,2]
[331641947,1720599087588,-500.0,0.00013917,2]
[331641948,1720599087611,-2095.57,0.00013917,2]
[331641949,1720599087622,-992.31,0.00013917,2]
[331641950,1720599087633,-567.73,0.00013917,2]
[331641951,1720599087645,-500.0,0.00013917,2]
[331641952,1720599087656,-500.0,0.00013917,2]
[331641953,1720599087668,-500.0,0.00013917,2]
[331641954,1720599087680,-522.4,0.00013917,2]
[331641955,1720599087691,-636.54,0.00013917,2]
[331641956,1720599087702,-794.74,0.00013917,2]
[331641957,1720599087713,-500.0,0.00013917,2]
[331641958,1720599087724,-1864.37,0.00013917,2]
[331641959,1720599087735,-500.0,0.00013917,2]
[331641960,1720599087747,-570.04,0.00013917,2]
[331641961,1720599087759,-633.0,0.00013917,2]
[331641962,1720599087770,-1198.38,0.00013917,2]
[331641963,1720599087782,-1211.28,0.00013917,2]
[331641964,1720599087795,-500.0,0.00013917,2]
[331641965,1720599087807,-809.68,0.00013917,2]
[331641966,1720599087819,-500.0,0.00013917,2]
[331641967,1720599087831,-500.0,0.00013917,2]
[331641968,1720599087846,-500.0,0.00013917,2]
[331641969,1720599087857,-789.3,0.00013917,2]
[331641970,1720599087867,-560.53,0.00013917,2]
[331641971,1720599087879,-500.0,0.00013917,2]
[331641972,1720599087889,-500.0,0.00013917,2]
[331641973,1720599087902,-500.0,0.00013917,2]
[331641974,1720599087913,-500.0,0.00013917,2]
[331641975,1720599087923,-500.0,0.00013917,2]
[331641976,1720599087933,-615.3,0.00013917,2]
[331641977,1720599087943,-2325.79,0.00013917,2]
[331641978,1720599087952,-1713.85,0.00013917,2]
[331641979,1720599087962,-500.0,0.00013917,2]
[331641980,1720599087972,-500.0,0.00013917,2]
[331641981,1720599087982,-903.69,0.00013917,2]
[331641982,1720599087992,-500.0,0.00013917,2]
[331641983,1720599088002,-765.64,0.00013917,2]
[331641984,1720599088012,-500.0,0.00013917,2]
[331641985,1720599088022,-500.0,0.00013917,2]
[331641986,1720599088032,-500.0,0.00013917,2]
[331641987,1720599088042,-500.0,0.00013917,2]
[331641988,1720599088052,-151.0,0.00013917,2]
[331641989,1720599088062,-500.0,0.00013917,2]
[331641990,1720599088072,-500.0,0.00013917,2]
[331641991,1720599088083,-500.0,0.00013917,2]
[331641992,1720599088098,-1016.73,0.00013917,2]
[331641993,1720599088109,-500.0,0.00013917,2]
[331641994,1720599088119,-2053.88,0.00013917,2]
[331641995,1720599088133,-1446.59,0.00013917,2]
[331641996,1720599088143,-1224.84,0.00013917,2]
[331641997,1720599088153,-1063.5,0.00013917,2]
[331641998,1720599088164,-1581.74,0.00013917,2]
[331641999,1720599088175,-500.0,0.00013917,2]
[331642000,1720599088187,-500.0,0.00013917,2]
[331642001,1720599088197,-770.63,0.00013917,2]
[331642002,1720599088207,-1892.73,0.00013917,2]
[331642003,1720599088218,-500.0,0.00013917,2]
[331642004,1720599088228,-1325.52,0.00013917,2]
[331642005,1720599088247,-501.90329711,0.00013917,2]
[331642006,1720599088259,-546.62,0.00013917,2]
[331642007,1720599088270,-1351.13,0.00013917,2]
[331642008,1720599088281,-775.73,0.00013917,2]
[331642009,1720599088291,-1010.28,0.00013917,2]
[331642010,1720599088302,-500.0,0.00013917,2]
[331642011,1720599088313,-1358.5,0.00013917,2]
[331642012,1720599088324,-1320.23,0.00013917,2]
[331642013,1720599088335,-1513.11,0.00013917,2]
[331642014,1720599088350,-569.89,0.00013917,2]
[331642015,1720599088360,-889.1,0.00013917,2]
[331642016,1720599088377,-1391.95,0.00013917,2]
[331642017,1720599088388,-500.0,0.00013917,2]
[331642018,1720599088399,-500.0,0.00013917,2]
[331642019,1720599088409,-184.40672033,0.00013917,2]
[331642020,1720599088429,-1077.84327967,0.00013917,2]
[331642021,1720599088439,-373.78360732,0.00013917,2]
[331642022,1720599088452,-126.21639268,0.00013917,2]
[331642023,1720599088463,-1622.26,0.00013917,2]
[331642024,1720599088473,-612.34,0.00013917,2]
[331642025,1720599088482,-500.0,0.00013917,2]
[331642026,1720599088492,-895.12,0.00013917,2]
[331642027,1720599088501,-37.04121409,0.00013917,2]
[331642028,1720599088524,-462.95878591,0.00013917,2]
[331642029,1720599088534,-2401.6,0.00013917,2]
[331642030,1720599088544,-500.0,0.00013917,2]
[331642031,1720599088554,-1905.89,0.00013917,2]
[331642032,1720599088563,-700.36,0.00013917,2]
[331642033,1720599088575,-651.97,0.00013917,2]
[331642034,1720599088585,-738.82,0.00013917,2]
[331642035,1720599088601,-1052.55,0.00013917,2]
[331642036,1720599088611,-565.31,0.00013917,2]
[331642037,1720599088623,-655.18,0.00013917,2]
[331642038,1720599088633,-1915.89,0.00013917,2]
[331642039,1720599088643,-636.16,0.00013917,2]
[331642040,1720599088653,-182.9190741,0.00013917,2]
[331642041,1720599088667,-1278.8209259,0.00013917,2]
[331642042,1720599088684,-756.11,0.00013917,2]
[331642043,1720599088695,-514.38,0.00013917,2]
[331642044,1720599088705,-821.58,0.00013917,2]
[331642045,1720599088715,-579.93,0.00013917,2]
[331642046,1720599088725,-500.0,0.00013917,2]
[331642047,1720599088735,-500.0,0.00013917,2]
[331642048,1720599088746,-1067.64,0.00013917,2]
[331642049,1720599088756,-500.0,0.00013917,2]
[331642050,1720599088767,-1392.84,0.00013917,2]
[331642051,1720599088777,-1195.75,0.00013917,2]
[331642052,1720599088787,-686.96,0.00013917,2]
[331642053,1720599088798,-875.94,0.00013917,2]
[331642054,1720599088808,-1240.99,0.00013917,2]
[331642055,1720599088818,-1399.89,0.00013917,2]
[331642056,1720599088828,-1421.29,0.00013917,2]
[331642057,1720599088842,-500.0,0.00013917,2]
[331642058,1720599088852,-500.0,0.00013917,2]
[331642059,1720599088862,-808.05,0.00013917,2]
[331642060,1720599088872,-566.87,0.00013917,2]
[331642061,1720599088884,-541.08,0.00013917,2]
[331642062,1720599088894,-838.58,0.00013917,2]
[331642063,1720599088904,-500.0,0.00013917,2]
[331642064,1720599088915,-854.33,0.00013917,2]
[331642065,1720599088925,-2183.86,0.00013917,2]
[331642066,1720599088935,-766.96,0.00013917,2]
[331642067,1720599088946,-500.0,0.00013917,2]
[331642068,1720599088957,-758.22,0.00013917,2]
[331642069,1720599088968,-2347.67,0.00013917,2]
[331642070,1720599088978,-500.0,0.00013917,2]
[331642071,1720599088988,-1416.52,0.00013917,2]
[331642072,1720599088999,-505.57,0.00013917,2]
[331642073,1720599089008,-1601.78,0.00013917,2]
[331642074,1720599089020,-608.64,0.00013917,2]
[331642075,1720599089031,-1224.06,0.00013917,2]
[331642076,1720599089042,-520.95,0.00013917,2]
[331642077,1720599089052,-990.67,0.00013917,2]
[331642078,1720599089062,-851.91,0.00013917,2]
[331642079,1720599089072,-956.7,0.00013917,2]
[331642080,1720599089082,-500.0,0.00013917,2]
[331642081,1720599089097,-647.54,0.00013917,2]
[331642082,1720599089115,-791.23,0.00013917,2]
[331642083,1720599089125,-1739.82,0.00013917,2]
[331642084,1720599089136,-500.0,0.00013917,2]
[331642085,1720599089146,-1133.22,0.00013917,2]
[331642086,1720599089156,-1267.17,0.00013917,2]
[331642087,1720599089166,-565.74,0.00013917,2]
[331642088,1720599089176,-500.0,0.00013917,2]
[331642089,1720599089186,-1391.5,0.00013917,2]
[331642090,1720599089196,-500.0,0.00013917,2]
[331642091,1720599089204,-1848.18,0.00013917,2]
[331642092,1720599089212,-500.0,0.00013917,2]
[331642093,1720599089221,-500.0,0.00013917,2]
[331642094,1720599089230,-1309.28,0.00013917,2]
[331642095,1720599089239,-1079.43,0.00013917,2]
[331642096,1720599089247,-210.14051282,0.00013917,2]
[331642097,1720599089256,-560.42,0.00013917,2]
[331642098,1720599089265,-831.76,0.00013917,2]
[331642099,1720599089274,-500.0,0.00013917,2]
[331642100,1720599089283,-500.0,0.00013917,2]
[331642101,1720599089393,-1270.27,0.00013917,2]
[331642102,1720599089403,-500.0,0.00013917,2]
[331642103,1720599089413,-1193.86,0.00013917,2]
[331642104,1720599089425,-500.0,0.00013917,2]
[331642105,1720599089435,-1130.07,0.00013917,2]
[331642106,1720599089446,-500.0,0.00013917,2]
[331642107,1720599089456,-637.83,0.00013917,2]
[331642108,1720599089465,-500.0,0.00013917,2]
[331642109,1720599089475,-1182.09,0.00013917,2]
[331642110,1720599089483,-1045.28,0.00013917,2]
[331642111,1720599089493,-500.0,0.00013917,2]
[331642112,1720599089502,-565.92,0.00013917,2]
[331642113,1720599089511,-500.0,0.00013917,2]
[331642114,1720599089520,-500.0,0.00013917,2]
[331642115,1720599089534,-500.0,0.00013917,2]
[331642116,1720599089544,-525.05,0.00013917,2]
[331642117,1720599089554,-800.08,0.00013917,2]
[331642118,1720599089564,-2179.63,0.00013917,2]
[331642119,1720599089574,-925.26,0.00013917,2]
[331642120,1720599089583,-1454.56,0.00013917,2]
[331642121,1720599089595,-500.0,0.00013917,2]
[331642122,1720599089604,-500.0,0.00013917,2]
[331642123,1720599089614,-500.0,0.00013917,2]
[331642124,1720599089624,-619.42,0.00013917,2]
[331642125,1720599089633,-1279.46,0.00013917,2]
[331642126,1720599089643,-500.0,0.00013917,2]
[331642127,1720599089652,-500.0,0.00013917,2]
[331642128,1720599089661,-2147.65,0.00013917,2]
[331642129,1720599089671,-1536.32,0.00013917,2]
[331642130,1720599089680,-1364.14,0.00013917,2]
[331642131,1720599089690,-500.0,0.00013917,2]
[331642132,1720599089700,-946.17,0.00013917,2]
[331642133,1720599089709,-1442.46,0.00013917,2]
[331642134,1720599089718,-500.0,0.00013917,2]
[331642135,1720599089728,-584.96,0.00013917,2]
[331642136,1720599089738,-1132.79,0.00013917,2]
[331642137,1720599089747,-549.41,0.00013917,2]
[331642138,1720599089757,-1603.67,0.00013917,2]
[331642139,1720599089767,-645.66,0.00013917,2]
[331642140,1720599089777,-500.0,0.00013917,2]
[331642141,1720599089787,-500.0,0.00013917,2]
[331642142,1720599089796,-500.0,0.00013917,2]
[331642143,1720599089806,-886.67,0.00013917,2]
[331642144,1720599089815,-886.67,0.00013917,2]
[331642145,1720599089825,-993.34,0.00013917,2]
[331642146,1720599089835,-500.0,0.00013917,2]
[331642147,1720599089850,-157.19932567,0.00013917,2]
[331642148,1720599089859,-1546.4,0.00013917,2]
[331642149,1720599089870,-709.43,0.00013917,2]
[331642150,1720599089880,-2213.4,0.00013917,2]
[331642151,1720599089890,-798.41,0.00013917,2]
[331642152,1720599089900,-500.0,0.00013917,2]
[331642153,1720599089910,-500.0,0.00013917,2]
[331642154,1720599089919,-772.63,0.00013917,2]
[331642155,1720599089928,-500.0,0.00013917,2]
[331642156,1720599089938,-500.0,0.00013917,2]
[331642157,1720599089947,-907.62,0.00013917,2]
[331642158,1720599089957,-500.0,0.00013917,2]
[331642159,1720599089967,-1795.22,0.00013917,2]
[331642160,1720599089977,-1061.37,0.00013917,2]
[331642161,1720599089986,-748.98,0.00013917,2]
[331642162,1720599089996,-500.0,0.00013917,2]
[331642163,1720599090006,-1003.48,0.00013917,2]
[331642164,1720599090015,-500.0,0.00013917,2]
[331642165,1720599090025,-384.06882171,0.00013917,2]
[331642166,1720599090034,-500.0,0.00013917,2]
[331642167,1720599090043,-531.15,0.00013917,2]
[331642168,1720599090052,-500.0,0.00013917,2]
[331642169,1720599090061,-674.33,0.00013917,2]
[331642170,1720599090071,-949.97,0.00013917,2]
[331642171,1720599090080,-500.0,0.00013917,2]
[331642172,1720599090093,-500.0,0.00013917,2]
[331642173,1720599090102,-500.0,0.00013917,2]
[331642174,1720599090112,-535.97,0.00013917,2]
[331642175,1720599090121,-1031.46,0.00013917,2]
[331642176,1720599090132,-1551.25,0.00013917,2]
[331642177,1720599090142,-2009.57,0.00013917,2]
[331642178,1720599090151,-1172.06,0.00013917,2]
[331642179,1720599090161,-6171.9745141,0.00013917,2]
[331642180,1720599090177,-686.6132303,0.00013917,2]
[331642181,1720599090189,-906.17357973,0.00013917,2]
[331642182,1720599090200,-298.96867587,0.00013917,2]
[331642183,1720599090210,-500.0,0.00013917,2]
[331642184,1720599090219,-957.9,0.00013917,2]
[331642185,1720599090229,-500.0,0.00013917,2]
[331642186,1720599090238,-500.0,0.00013917,2]
[331642187,1720599090248,-410.32982313,0.00013917,2]
[331642188,1720599090271,-89.67017687,0.00013917,2]
[331642189,1720599090280,-684.27,0.00013917,2]
[331642190,1720599090290,-651.64,0.00013917,2]
[331642191,1720599090300,-1261.76,0.00013917,2]
[331642192,1720599090310,-500.0,0.00013917,2]
[331642193,1720599090319,-1965.46,0.00013917,2]
[331642194,1720599090330,-898.83,0.00013917,2]
[331642195,1720599090341,-500.0,0.00013917,2]
[331642196,1720599090350,-776.14,0.00013917,2]
[331642197,1720599090361,-500.0,0.00013917,2]
[331642198,1720599090371,-922.72,0.00013917,2]
[331642199,1720599090382,-500.0,0.00013917,2]
[331642200,1720599090392,-500.0,0.00013917,2]
[331642201,1720599090402,-192.63321333,0.00013917,2]
[331642202,1720599090773,-729.98,0.00013698,2]
[331642203,1720599090782,-868.38,0.00013698,2]
[331642204,1720599090791,-729.98,0.00013753,2]
[331642205,1720599090801,-729.98,0.00013808,2]
[331642206,1720599090811,-346.92678667,0.00013917,2]
[331642207,1720599090820,-500.0,0.00013917,2]
[331642208,1720599090833,-1390.04,0.00013917,2]
[331642209,1720599090845,-1261.08,0.00013917,2]
[331642210,1720599090855,-268.45105896,0.00013917,2]
[331642211,1720599090867,-615.2380825,0.00013917,2]
[331642212,1720599090879,-791.69949259,0.00013917,2]
[331642213,1720599090890,-388.52136595,0.00013917,2]
[331642214,1720599090900,-394.85064161,0.00013917,2]
[331642215,1720599090911,-105.14935839,0.00013917,2]
[331642216,1720599090921,-274.56072533,0.00013917,2]
[331642217,1720599090932,-794.89183922,0.00013917,2]
[331642218,1720599090968,-621.73743545,0.00013917,2]
[331642219,1720599090978,-327.79715016,0.00013917,2]
[331642220,1720599090990,-172.20284984,0.00013917,2]
[331642221,1720599091000,-500.0,0.00013917,2]
[331642222,1720599091010,-1168.83,0.00013917,2]
[331642223,1720599091019,-248.83185143,0.00013917,2]
[331642224,1720599091031,-251.16814857,0.00013917,2]
[331642225,1720599091041,-500.0,0.00013917,2]
[331642226,1720599091050,-595.62,0.00013917,2]
[331642227,1720599091060,-1211.99,0.00013917,2]
[331642228,1720599091069,-2001.25,0.00013917,2]
[331642229,1720599091078,-704.07,0.00013917,2]
[331642230,1720599091089,-7594.21,0.00013917,2]
[331642231,1720599091099,-500.0,0.00013917,2]
[331642232,1720599091109,-500.0,0.00013917,2]
[331642233,1720599091121,-739.38,0.00013917,2]
[331642234,1720599091131,-520.82,0.00013917,2]
[331642235,1720599091142,-500.0,0.00013917,2]
[331642236,1720599091153,-1451.03,0.00013917,2]
[331642237,1720599091163,-365.79727197,0.00013917,2]
[331642238,1720599091172,-500.0,0.00013917,2]
[331642239,1720599091182,-1390.38,0.00013917,2]
[331642240,1720599091192,-571.76,0.00013917,2]
[331642241,1720599091202,-500.0,0.00013917,2]
[331642242,1720599091212,-527.86,0.00013917,2]
[331642243,1720599091222,-500.0,0.00013917,2]
[331642244,1720599091232,-2979.14,0.00013917,2]
[331642245,1720599091241,-1672.16,0.00013917,2]
[331642246,1720599091251,-775.37,0.00013917,2]
[331642247,1720599091260,-641.26,0.00013917,2]
[331642248,1720599091270,-500.0,0.00013917,2]
[331642249,1720599091280,-542.11,0.00013917,2]
[331642250,1720599091289,-665.69,0.00013917,2]
[331642251,1720599091299,-1256.31,0.00013917,2]
[331642252,1720599091309,-500.0,0.00013917,2]
[331642253,1720599091319,-551.13,0.00013917,2]
[331642254,1720599091328,-500.0,0.00013917,2]
[331642255,1720599091339,-878.48,0.00013917,2]
[331642256,1720599091351,-500.0,0.00013917,2]
[331642257,1720599091360,-682.43,0.00013917,2]
[331642258,1720599091370,-500.0,0.00013917,2]
[331642259,1720599091385,-3981.22,0.00013917,2]
[331642260,1720599091395,-1336.43,0.00013917,2]
[331642261,1720599091405,-604.92,0.00013917,2]
[331642262,1720599091414,-500.0,0.00013917,2]
[331642263,1720599091424,-662.54,0.00013917,2]
[331642264,1720599091433,-500.0,0.00013917,2]
[331642265,1720599091443,-1827.92,0.00013917,2]
[331642266,1720599091452,-953.72,0.00013917,2]
[331642267,1720599091462,-2531.12,0.00013917,2]
[331642268,1720599091471,-831.35,0.00013917,2]
[331642269,1720599091481,-524.08,0.00013917,2]
[331642270,1720599091491,-500.0,0.00013917,2]
[331642271,1720599091501,-1097.86,0.00013917,2]
[331642272,1720599091511,-721.73,0.00013917,2]
[331642273,1720599091522,-1613.86,0.00013917,2]
[331642274,1720599091532,-1530.39,0.00013917,2]
[331642275,1720599091542,-2252.59,0.00013917,2]
[331642276,1720599091552,-1003.31,0.00013917,2]
[331642277,1720599091562,-500.0,0.00013917,2]
[331642278,1720599091571,-842.22,0.00013917,2]
[331642279,1720599091580,-509.24,0.00013917,2]
[331642280,1720599091591,-552.97,0.00013917,2]
[331642281,1720599091601,-1134.84,0.00013917,2]
[331642282,1720599091611,-500.0,0.00013917,2]
[331642283,1720599091620,-707.08,0.00013917,2]
[331642284,1720599091630,-1100.8,0.00013917,2]
[331642285,1720599091639,-1455.23,0.00013917,2]
[331642286,1720599091648,-1224.68,0.00013917,2]
[331642287,1720599091658,-500.0,0.00013917,2]
[331642288,1720599091667,-500.0,0.00013917,2]
[331642289,1720599091687,-500.0,0.00013917,2]
[331642290,1720599091697,-500.0,0.00013917,2]
[331642291,1720599091707,-970.85,0.00013917,2]
[331642292,1720599091717,-500.0,0.00013917,2]
[331642293,1720599091726,-864.35,0.00013917,2]
[331642294,1720599091736,-500.0,0.00013917,2]
[331642295,1720599091746,-727.67,0.00013917,2]
[331642296,1720599091755,-500.0,0.00013917,2]
[331642297,1720599091765,-3454.66,0.00013917,2]
[331642298,1720599091775,-1558.68,0.00013917,2]
[331642299,1720599091785,-500.0,0.00013917,2]
[331642300,1720599091795,-1081.61,0.00013917,2]
[331642301,1720599091804,-500.0,0.00013917,2]
[331642302,1720599091815,-824.12,0.00013917,2]
[331642303,1720599091825,-500.0,0.00013917,2]
[331642304,1720599091835,-1320.77,0.00013917,2]
[331642305,1720599091847,-500.0,0.00013917,2]
[331642306,1720599091857,-1608.57,0.00013917,2]
[331642307,1720599091867,-500.0,0.00013917,2]
[331642308,1720599091876,-541.93,0.00013917,2]
[331642309,1720599091885,-787.39,0.00013917,2]
[331642310,1720599091895,-834.91,0.00013917,2]
[331642311,1720599091904,-575.26,0.00013917,2]
[331642312,1720599091913,-791.15,0.00013917,2]
[331642313,1720599091924,-500.0,0.00013917,2]
[331642314,1720599091934,-500.0,0.00013917,2]
[331642315,1720599091943,-500.0,0.00013917,2]
[331642316,1720599091953,-662.24,0.00013917,2]
[331642317,1720599091965,-2495.06,0.00013917,2]
[331642318,1720599091975,-500.0,0.00013917,2]
[331642319,1720599091985,-1021.29,0.00013917,2]
[331642320,1720599091994,-500.0,0.00013917,2]
[331642321,1720599092004,-1369.65,0.00013917,2]
[331642322,1720599092014,-624.67,0.00013917,2]
[331642323,1720599092024,-775.81,0.00013917,2]
[331642324,1720599092033,-855.1,0.00013917,2]
[331642325,1720599092043,-500.0,0.00013917,2]
[331642326,1720599092054,-500.0,0.00013917,2]
[331642327,1720599092064,-150.0,0.00013924,2]
[331642328,1720599092074,-150.0,0.00013926,2]
[331642329,1720599092083,-160.893093,0.00013927,2]
[331642330,1720599092094,-160.4114324,0.00013929,2]
[331642331,1720599092103,-160.4114324,0.00013942,2]
[331642332,1720599092112,-150.0,0.00013946,2]
[331642333,1720599092122,-212.0,0.0001395,2]
[331642334,1720599092131,-160.4114324,0.00013954,2]
[331642335,1720599092141,-150.0,0.00013954,2]
[331642336,1720599092151,-160.4114324,0.00013967,2]
[331642337,1720599092160,-150.0,0.00013968,2]
[331642338,1720599092169,-700.0,0.0001397,2]
[331642339,1720599092179,-700.0,0.0001397,2]
[331642340,1720599092188,-700.0,0.0001397,2]
[331642341,1720599092198,-700.0,0.0001397,2]
[331642342,1720599092207,-1301.42900135,0.0001397,2]
[331642343,1720599092216,-500.0,0.0001397,2]
[331642344,1720599092227,-400.0,0.0001397,2]
[331642345,1720599092236,-400.0,0.0001397,2]
[331642346,1720599092246,-400.0,0.0001397,2]
[331642347,1720599092257,-500.0,0.00013971,2]
[331642348,1720599092266,-300.0,0.00013971,2]
[331642349,1720599092276,-500.0,0.00013972,2]
[331642350,1720599092285,-768.06,0.00013972,2]
[331642351,1720599092295,-798.28,0.00013972,2]
[331642352,1720599092305,-869.12,0.00013972,2]
[331642353,1720599092314,-922.42,0.00013972,2]
[331642354,1720599092324,-500.0,0.00013972,2]
[331642355,1720599092340,-500.0,0.00013972,2]
[331642356,1720599092349,-562.96,0.00013972,2]
[331642357,1720599092359,-1185.66,0.00013972,2]
[331642358,1720599092369,-500.0,0.00013972,2]
[331642359,1720599092379,-500.0,0.00013972,2]
[331642360,1720599092389,-829.04,0.00013972,2]
[331642361,1720599092399,-436.96995443,0.00013972,2]
[331642362,1720599092412,-1107.31,0.00013972,2]
[331642363,1720599092422,-540.25,0.00013972,2]
[331642364,1720599092432,-500.0,0.00013972,2]
[331642365,1720599092441,-966.7,0.00013972,2]
[331642366,1720599092452,-500.0,0.00013972,2]
[331642367,1720599092462,-500.0,0.00013972,2]
[331642368,1720599092472,-685.53,0.00013972,2]
[331642369,1720599092482,-627.98,0.00013972,2]
[331642370,1720599092492,-921.07,0.00013972,2]
[331642371,1720599092503,-949.59,0.00013972,2]
[331642372,1720599092512,-501.9,0.00013972,2]
[331642373,1720599092522,-500.0,0.00013972,2]
[331642374,1720599092534,-500.0,0.00013972,2]
[331642375,1720599092543,-500.0,0.00013972,2]
[331642376,1720599092553,-935.29,0.00013972,2]